bitfinex/quotes_BTCUSD_20240611
["timestamp","ask_amount","ask_price","bid_price","bid_amount"]
[1718086141586,0.00086,67940.0,67939.0,0.1562]
[1718086141993,0.00086,67940.0,67939.0,0.1512]
[1718086144021,0.00086,67940.0,67939.0,0.1562]
[1718086144236,0.00086,67940.0,67939.0,0.18925921]
[1718086144900,0.00086,67940.0,67939.0,0.03805921]
[1718086147054,0.00086,67940.0,67939.0,0.12295921]
[1718086148133,0.00086,67940.0,67939.0,0.11595921]
[1718086148347,0.00086,67940.0,67939.0,0.11795921]
[1718086148529,0.00086,67940.0,67939.0,0.12295921]
[1718086148741,0.00086,67940.0,67939.0,0.12095921]
[1718086148933,0.00086,67940.0,67939.0,0.12295921]
[1718086149395,0.25666,67940.0,67939.0,0.007]
[1718086149592,0.49587993,67940.0,67939.0,0.007]
[1718086149812,0.45924102,67940.0,67939.0,0.007]
[1718086150028,1.12843306,67940.0,67939.0,0.007]
[1718086150241,0.39301,67930.0,67920.0,0.05014595]
[1718086150628,0.44834368,67930.0,67920.0,0.05014595]
[1718086151339,0.40438037,67930.0,67920.0,0.05014595]
[1718086152363,0.44834368,67930.0,67929.0,0.001946]
[1718086153217,0.46834368,67930.0,67929.0,0.001946]
[1718086153554,0.61266361,67930.0,67929.0,0.001946]
[1718086153754,0.5687003,67930.0,67929.0,0.001946]
[1718086153959,0.5687003,67930.0,67929.0,0.000946]
[1718086154361,0.5717003,67930.0,67929.0,0.001946]
[1718086154763,0.5687003,67930.0,67929.0,0.000946]
[1718086154966,0.5717003,67930.0,67929.0,0.001946]
[1718086155180,0.63764527,67930.0,67929.0,0.001946]
[1718086155381,0.61464527,67930.0,67929.0,0.000946]
[1718086155583,0.53264527,67930.0,67929.0,0.000946]
[1718086155787,0.05834019,67930.0,67929.0,0.001946]
[1718086156004,0.05834019,67930.0,67929.0,0.0099106]
[1718086156783,0.05834019,67930.0,67929.0,0.001946]
[1718086156784,0.36285347,67930.0,67929.0,0.001946]
[1718086156992,0.9271776,67930.0,67929.0,0.001946]
[1718086157397,0.9241776,67930.0,67929.0,0.000946]
[1718086157894,0.9261776,67930.0,67929.0,0.001946]
[1718086158098,0.92623322,67930.0,67929.0,0.000946]
[1718086158300,0.92423322,67930.0,67929.0,0.000946]
[1718086158538,0.92623322,67930.0,67929.0,0.001946]
[1718086158946,0.92423322,67930.0,67929.0,0.000946]
[1718086159588,0.90423322,67930.0,67929.0,0.000946]
[1718086159739,0.92423322,67930.0,67929.0,0.000946]
[1718086160123,0.92423677,67930.0,67929.0,0.000946]
[1718086161009,0.92623677,67930.0,67929.0,0.001946]
[1718086161231,0.88722443,67930.0,67929.0,0.000946]
[1718086161559,0.88922443,67930.0,67929.0,0.001946]
[1718086161971,0.88722443,67930.0,67929.0,0.000946]
[1718086162195,0.88922443,67930.0,67929.0,0.001946]
[1718086162628,0.99715652,67930.0,67929.0,0.000946]
[1718086162835,0.88722443,67930.0,67929.0,0.000946]
[1718086163279,0.86722443,67930.0,67929.0,0.000946]
[1718086163547,0.88722443,67930.0,67929.0,0.000946]
[1718086164020,0.99715991,67930.0,67929.0,0.000946]
[1718086164235,0.88922443,67930.0,67929.0,0.001946]
[1718086164432,0.88722443,67930.0,67929.0,0.000946]
[1718086164836,0.88922443,67930.0,67929.0,0.001946]
[1718086165046,0.2,67924.0,67920.0,0.000946]
[1718086165252,0.0112565,67923.0,67921.0,0.0151746]
[1718086166307,0.0112565,67923.0,67922.0,0.0775]
[1718086166693,0.14722,67926.0,67922.0,0.0775]
[1718086166855,0.01124958,67923.0,67922.0,0.0775]
[1718086167057,0.14722,67926.0,67922.0,0.0775]
[1718086167306,0.01126176,67925.0,67923.0,0.02444206]
[1718086169124,0.01126176,67925.0,67923.0,0.02544206]
[1718086170172,0.01126176,67925.0,67923.0,0.02644206]
[1718086170636,0.01126176,67925.0,67923.0,0.02544206]
[1718086171095,0.01126176,67925.0,67924.0,0.16431993]
[1718086171308,0.01126176,67925.0,67924.0,0.55384584]
[1718086171519,0.00086,67940.0,67934.0,0.02]
[1718086171763,0.00086,67940.0,67936.0,0.02]
[1718086171992,0.00947086,67939.0,67938.0,0.1854]
[1718086172209,0.00947086,67939.0,67938.0,0.30727]
[1718086172431,0.00086,67940.0,67938.0,0.30727]
[1718086172432,0.00086,67940.0,67938.0,0.29067]
[1718086172649,0.00086,67940.0,67939.0,0.0759]
[1718086173314,0.00086,67940.0,67939.0,0.0959]
[1718086173516,0.00086,67940.0,67939.0,0.0759]
[1718086173793,0.00086,67940.0,67939.0,0.126297]
[1718086174003,0.00086,67940.0,67939.0,0.0759]
[1718086174204,0.00086,67940.0,67939.0,0.0809]
[1718086174667,0.00086,67940.0,67934.0,0.2469]
[1718086175300,0.00086,67940.0,67939.0,0.001]
[1718086175755,0.01042454,67940.0,67934.0,0.2669]
[1718086175966,0.00086,67940.0,67935.0,0.02812203]
[1718086176184,0.00086,67940.0,67939.0,0.006]
[1718086176454,0.00086,67940.0,67939.0,0.005]
[1718086176879,0.01050906,67940.0,67939.0,0.006]
[1718086177090,0.01050906,67940.0,67939.0,0.005]
[1718086177317,0.01050906,67940.0,67939.0,0.0300022]
[1718086177765,0.00086,67940.0,67939.0,0.0300022]
[1718086179078,0.00086,67940.0,67939.0,0.0310022]
[1718086179722,0.00086,67940.0,67939.0,0.0360022]
[1718086184714,0.00086,67940.0,67939.0,0.2719022]
[1718086185570,0.00086,67940.0,67939.0,0.2669022]
[1718086185997,0.00086,67940.0,67939.0,0.2709022]
[1718086186229,0.00086,67940.0,67939.0,0.2919022]
[1718086187045,0.00086,67940.0,67939.0,0.2719022]
[1718086192716,0.00086,67940.0,67939.0,0.2919022]
[1718086197374,0.00086,67940.0,67939.0,0.44455962]
[1718086199041,0.00086,67940.0,67939.0,0.52945962]
[1718086201048,0.00086,67940.0,67939.0,0.52945972]
[1718086201259,0.00086,67940.0,67939.0,0.50945972]
[1718086201904,0.00086,67940.0,67939.0,0.52945988]
[1718086202118,0.00086,67940.0,67939.0,0.42455988]
[1718086202314,0.00086,67940.0,67939.0,0.50945988]
[1718086202964,0.00086,67940.0,67939.0,0.52945988]
[1718086203379,0.00086,67940.0,67939.0,0.50945988]
[1718086203581,0.00086,67940.0,67939.0,0.52945988]
[1718086204796,0.00086,67940.0,67939.0,0.42455988]
[1718086204997,0.00086,67940.0,67939.0,0.50945988]
[1718086208240,0.00086,67940.0,67939.0,0.50945994]
[1718086208444,0.00086,67940.0,67939.0,0.27355994]
[1718086209062,0.01051947,67940.0,67939.0,0.27355994]
[1718086209281,0.00086,67940.0,67939.0,0.27355994]
[1718086209478,0.01051947,67940.0,67939.0,0.27356199]
[1718086209684,0.00086,67940.0,67939.0,0.27356199]
[1718086209910,0.01051947,67940.0,67939.0,0.27356199]
[1718086210358,0.01051947,67940.0,67939.0,0.18866199]
[1718086211013,0.24351947,67940.0,67939.0,0.15865979]
[1718086211233,0.24351947,67940.0,67939.0,0.006]
[1718086211471,0.24351947,67940.0,67939.0,0.001]
[1718086211688,0.28751384,67940.0,67939.0,0.006]
[1718086212138,0.28751384,67940.0,67937.0,0.0849]
[1718086212345,0.28751384,67940.0,67939.0,0.001]
[1718086212567,0.24351947,67940.0,67939.0,0.006]
[1718086213203,0.47669903,67940.0,67939.0,0.006]
[1718086213425,0.6429274,67940.0,67939.0,0.006]
[1718086213645,0.147206,67932.0,67929.0,0.000946]
[1718086213860,0.08811282,67930.0,67929.0,0.000946]
[1718086214059,0.41430777,67930.0,67929.0,0.000946]
[1718086214282,0.42393383,67930.0,67929.0,0.000946]
[1718086214510,0.4239441,67930.0,67929.0,0.000946]
[1718086215138,0.4249441,67930.0,67929.0,0.000946]
[1718086216467,0.07673144,67930.0,67929.0,0.0388206]
[1718086216688,0.07673144,67930.0,67929.0,0.0188206]
[1718086216689,0.01062606,67930.0,67929.0,0.0188206]
[1718086216903,0.05469546,67930.0,67929.0,0.0188206]
[1718086217295,0.01062606,67930.0,67929.0,0.0388206]
[1718086217495,0.05469811,67930.0,67929.0,0.0388206]
[1718086219716,0.05469811,67930.0,67929.0,0.0428206]
[1718086220092,0.05469811,67930.0,67929.0,0.0188206]
[1718086220529,0.05469811,67930.0,67929.0,0.0228206]
[1718086220728,0.05369811,67930.0,67929.0,0.0228206]
[1718086221176,0.00962606,67930.0,67929.0,0.0228206]
[1718086221393,0.00962606,67930.0,67929.0,0.0238206]
[1718086221628,0.00962606,67930.0,67929.0,0.0228206]
[1718086221851,0.05369811,67930.0,67929.0,0.0238206]
[1718086222281,0.05369811,67930.0,67929.0,0.005946]
[1718086222504,0.00962606,67930.0,67929.0,0.005946]
[1718086222724,0.33584227,67930.0,67929.0,0.005946]
[1718086223622,0.00962606,67930.0,67929.0,0.005946]
[1718086224294,0.07568347,67930.0,67929.0,0.005946]
[1718086224712,0.07568116,67930.0,67929.0,0.005946]
[1718086225333,0.23998116,67930.0,67929.0,0.005946]
[1718086226598,0.00962606,67930.0,67929.0,0.005946]
[1718086228070,0.00962606,67930.0,67929.0,0.025946]
[1718086228702,0.05364273,67930.0,67929.0,0.025946]
[1718086230194,0.05364273,67930.0,67929.0,0.005946]
[1718086231767,0.0042467,67930.0,67929.0,0.005946]
[1718086232006,0.04825423,67930.0,67929.0,0.005946]
[1718086232234,0.27350753,67930.0,67929.0,0.005946]
[1718086232453,0.27773972,67930.0,67929.0,0.005946]
[1718086233344,0.04823972,67930.0,67929.0,0.001946]
[1718086234490,0.04823972,67930.0,67929.0,0.000946]
[1718086234719,0.04823972,67930.0,67929.0,0.005946]
[1718086235216,0.0482357,67930.0,67929.0,0.001946]
[1718086235428,0.0482357,67930.0,67929.0,0.005946]
[1718086235601,0.0482357,67930.0,67929.0,0.003946]
[1718086236042,0.0502357,67930.0,67929.0,0.003946]
[1718086236191,0.0502357,67930.0,67929.0,0.000946]
[1718086237236,0.05023548,67930.0,67929.0,0.000946]
[1718086238856,0.05023702,67930.0,67929.0,0.000946]
[1718086239056,0.05023702,67930.0,67929.0,0.004946]
[1718086239533,0.05023702,67930.0,67929.0,0.000946]
[1718086241782,0.24593219,67930.0,67929.0,0.000946]
[1718086241995,0.39314219,67930.0,67929.0,0.000946]
[1718086242210,0.45914944,67930.0,67929.0,0.000946]
[1718086242420,0.82738432,67930.0,67929.0,0.000946]
[1718086242654,0.80738432,67930.0,67929.0,0.000946]
[1718086243284,0.39314219,67930.0,67929.0,0.000946]
[1718086243537,0.80741362,67930.0,67929.0,0.000946]
[1718086244168,0.79701025,67930.0,67929.0,0.000946]
[1718086244383,0.94521066,67930.0,67929.0,0.000946]
[1718086244645,0.85717518,67930.0,67929.0,0.000946]
[1718086244866,0.96721954,67930.0,67929.0,0.000946]
[1718086245077,0.53093923,67930.0,67929.0,0.000946]
[1718086245278,0.9672327,67930.0,67929.0,0.000946]
[1718086245455,0.85718389,67930.0,67929.0,0.000946]
[1718086245863,0.96723933,67930.0,67929.0,0.000946]
[1718086246311,0.85718389,67930.0,67929.0,0.000946]
[1718086247467,0.96723933,67930.0,67929.0,0.000946]
[1718086247701,1.0521337,67930.0,67929.0,0.000946]
[1718086248337,0.94208012,67930.0,67929.0,0.000946]
[1718086249971,0.96208012,67930.0,67929.0,0.000946]
[1718086250204,0.94208012,67930.0,67929.0,0.000946]
[1718086250586,0.85718012,67930.0,67929.0,0.000946]
[1718086250792,0.94208012,67930.0,67929.0,0.000946]
[1718086254432,0.94208024,67930.0,67929.0,0.000946]
[1718086254884,0.85718024,67930.0,67929.0,0.000946]
[1718086256318,0.98941282,67930.0,67929.0,0.000946]
[1718086257840,0.85718024,67930.0,67929.0,0.000946]
[1718086260837,0.94208024,67930.0,67929.0,0.000946]
[1718086261264,0.85718024,67930.0,67929.0,0.000946]
[1718086261459,0.93994109,67930.0,67929.0,0.000946]
[1718086261670,0.85504109,67930.0,67929.0,0.000946]
[1718086261896,0.93994109,67930.0,67929.0,0.000946]
[1718086263126,0.95994109,67930.0,67929.0,0.000946]
[1718086263331,1.03747617,67930.0,67929.0,0.000946]
[1718086263772,1.06047617,67930.0,67929.0,0.000946]
[1718086263988,1.10149461,67930.0,67929.0,0.000946]
[1718086264483,1.30149461,67930.0,67929.0,0.000946]
[1718086264706,1.29961572,67930.0,67929.0,0.000946]
[1718086264968,1.25859728,67930.0,67929.0,0.000946]
[1718086265845,1.26059728,67930.0,67929.0,0.001946]
[1718086266080,0.95369728,67930.0,67929.0,0.000946]
[1718086266321,1.03859728,67930.0,67929.0,0.000946]
[1718086266543,1.04459728,67930.0,67929.0,0.002946]
[1718086267216,1.06459728,67930.0,67929.0,0.002946]
[1718086269044,0.98894109,67930.0,67929.0,0.002946]
[1718086269280,1.21312528,67930.0,67929.0,0.002946]
[1718086269905,1.21417589,67930.0,67929.0,0.002946]
[1718086270790,1.06528338,67930.0,67929.0,0.002946]
[1718086272321,1.21414804,67930.0,67929.0,0.002946]
[1718086273531,0.98038338,67930.0,67929.0,0.002946]
[1718086273742,1.10218617,67930.0,67929.0,0.002946]
[1718086275439,1.39660617,67930.0,67929.0,0.002946]
[1718086275666,1.39646589,67930.0,67929.0,0.002946]
[1718086275869,1.60077596,67930.0,67929.0,0.002946]
[1718086276071,0.347229,67921.0,67920.0,0.000946]
[1718086276287,0.95963248,67921.0,67920.0,0.000946]
[1718086276503,1.09684624,67921.0,67920.0,0.000946]
[1718086277338,1.09684624,67921.0,67920.0,0.003946]
[1718086277791,0.77055784,67921.0,67920.0,0.003946]
[1718086277987,1.09685475,67921.0,67920.0,0.003946]
[1718086278651,1.09685475,67921.0,67920.0,0.004946]
[1718086278882,1.09674412,67921.0,67920.0,0.004946]
[1718086280028,1.01184412,67921.0,67920.0,0.004946]
[1718086280238,1.09674412,67921.0,67920.0,0.004946]
[1718086281166,0.99184412,67921.0,67920.0,0.004946]
[1718086281424,1.07674412,67921.0,67920.0,0.004946]
[1718086284752,1.09674412,67921.0,67920.0,0.004946]
[1718086284964,1.22594608,67921.0,67920.0,0.004946]
[1718086285399,1.29584197,67921.0,67920.0,0.004946]
[1718086285836,1.29584197,67921.0,67920.0,0.001946]
[1718086286042,1.29584197,67921.0,67920.0,0.003946]
[1718086286449,1.29884197,67921.0,67920.0,0.004946]
[1718086286672,1.29584197,67921.0,67920.0,0.000946]
[1718086287111,1.30384197,67921.0,67920.0,0.002946]
[1718086287776,1.32171271,67921.0,67920.0,0.002946]
[1718086289487,0.99538813,67921.0,67920.0,0.002946]
[1718086289696,1.32171284,67921.0,67920.0,0.002946]
[1718086291233,1.61617184,67921.0,67920.0,0.002946]
[1718086293595,1.61605267,67921.0,67920.0,0.002946]
[1718086294600,1.61610526,67921.0,67920.0,0.002946]
[1718086296180,1.53120526,67921.0,67920.0,0.002946]
[1718086296395,1.61610526,67921.0,67920.0,0.002946]
[1718086297691,1.61616576,67921.0,67920.0,0.002946]
[1718086299463,1.37766576,67921.0,67920.0,0.002946]
[1718086299928,1.24976576,67921.0,67920.0,0.002946]
[1718086300141,1.04020676,67921.0,67920.0,0.166446]
[1718086300584,1.1724262,67921.0,67920.0,0.166446]
[1718086300800,1.10261997,67921.0,67920.0,0.166446]
[1718086301802,1.04100292,67921.0,67920.0,0.166446]
[1718086301989,1.04100292,67921.0,67920.0,0.002946]
[1718086304670,0.95610292,67921.0,67920.0,0.0265906]
[1718086304879,1.04100292,67921.0,67920.0,0.0265906]
[1718086305959,0.67780247,67921.0,67920.0,0.002946]
[1718086306176,1.04129949,67921.0,67920.0,0.002946]
[1718086307003,1.04129951,67921.0,67920.0,0.002946]
[1718086308029,1.0450229,67921.0,67920.0,0.002946]
[1718086308651,0.9601229,67921.0,67920.0,0.002946]
[1718086308863,1.0450229,67921.0,67920.0,0.002946]
[1718086310356,1.11718286,67921.0,67920.0,0.002946]
[1718086311330,1.11718263,67921.0,67920.0,0.002946]
[1718086311743,0.96012267,67921.0,67920.0,0.002946]
[1718086311922,1.04502267,67921.0,67920.0,0.002946]
[1718086313175,1.04502267,67921.0,67920.0,0.0265106]
[1718086315412,1.19391383,67921.0,67920.0,0.0265106]
[1718086315644,1.19401213,67921.0,67920.0,0.0265106]
[1718086315880,1.19401213,67921.0,67920.0,0.002946]
[1718086319264,0.90075379,67921.0,67920.0,0.161046]
[1718086319536,0.90075379,67921.0,67920.0,0.244246]
[1718086319995,0.81585379,67921.0,67920.0,0.244246]
[1718086320209,0.90161222,67921.0,67920.0,0.244246]
[1718086320429,0.90161222,67921.0,67920.0,0.2686706]
[1718086321635,0.49040503,67921.0,67920.0,0.2686706]
[1718086321854,0.81671183,67921.0,67920.0,0.2686706]
[1718086324179,0.81742654,67921.0,67920.0,0.2686706]
[1718086325140,0.81742374,67921.0,67920.0,0.2686706]
[1718086325557,0.8895837,67921.0,67920.0,0.2686706]
[1718086327576,1.1840427,67921.0,67920.0,0.1105706]
[1718086327790,1.1840427,67921.0,67920.0,0.0273706]
[1718086330348,1.1840427,67921.0,67920.0,0.002946]
[1718086333951,0.81694609,67921.0,67920.0,0.246046]
[1718086334127,0.5990427,67921.0,67920.0,0.350946]
[1718086334296,0.5990427,67921.0,67920.0,0.50368297]
[1718086334297,0.33921488,67921.0,67920.0,0.50368297]
[1718086334460,0.33921488,67921.0,67920.0,0.4213143]
[1718086334663,0.42749733,67921.0,67920.0,0.6213143]
[1718086334879,0.00086,67929.0,67928.0,0.4565]
[1718086335080,0.3270848,67929.0,67928.0,0.5414]
[1718086335279,0.00086,67929.0,67928.0,0.69410666]
[1718086335478,0.00086,67929.0,67928.0,0.76351733]
[1718086336233,0.00086,67930.0,67929.0,0.22]
[1718086336454,0.0440964,67932.0,67931.0,0.4577]
[1718086336660,0.0449564,67940.0,67938.0,0.2577]
[1718086336839,0.0449564,67940.0,67938.0,0.3426]
[1718086336840,0.00086,67940.0,67938.0,0.3426]
[1718086338347,0.00086,67940.0,67938.0,0.3476]
[1718086339248,0.00086,67940.0,67938.0,0.2647]
[1718086339903,0.00086,67940.0,67938.0,0.2447]
[1718086340111,0.00086,67940.0,67938.0,0.27966]
[1718086340356,0.00086,67940.0,67938.0,0.29966]
[1718086342107,0.00086,67940.0,67938.0,0.27966]
[1718086342312,0.14517993,67939.0,67938.0,0.007]
[1718086342532,0.3828547,67939.0,67938.0,0.007]
[1718086342731,0.4258547,67939.0,67938.0,0.007]
[1718086342942,0.86193502,67939.0,67938.0,0.007]
[1718086343151,0.86193502,67939.0,67938.0,0.005]
[1718086343356,0.75208654,67939.0,67938.0,0.005]
[1718086343558,0.75208654,67939.0,67938.0,0.007]
[1718086343682,0.4258547,67939.0,67938.0,0.002]
[1718086343925,1.37417113,67939.0,67938.0,0.006]
[1718086344130,1.57417113,67939.0,67938.0,0.006]
[1718086344529,0.347219,67926.0,67925.0,0.04991296]
[1718086344733,0.347219,67926.0,67920.0,0.000946]
[1718086344734,0.147229,67922.0,67920.0,0.000946]
[1718086344961,0.36370889,67921.0,67920.0,0.000946]
[1718086345175,0.29723309,67921.0,67920.0,0.000946]
[1718086345344,0.34118425,67921.0,67920.0,0.000946]
[1718086346224,0.19686432,67921.0,67920.0,0.000946]
[1718086347078,0.19786432,67921.0,67920.0,0.000946]
[1718086347532,0.20086432,67921.0,67920.0,0.000946]
[1718086347968,0.19786432,67921.0,67920.0,0.000946]
[1718086348430,0.20086432,67921.0,67920.0,0.000946]
[1718086348861,0.19786432,67921.0,67920.0,0.000946]
[1718086349311,0.19986973,67921.0,67920.0,0.000946]
[1718086349524,0.20186973,67921.0,67920.0,0.000946]
[1718086350002,0.34323309,67921.0,67920.0,0.000946]
[1718086350245,0.72368743,67921.0,67920.0,0.000946]
[1718086350498,0.72068743,67921.0,67920.0,0.000946]
[1718086350710,0.71868743,67921.0,67920.0,0.000946]
[1718086350896,0.72368743,67921.0,67920.0,0.001946]
[1718086351392,0.72068743,67921.0,67920.0,0.001946]
[1718086351652,0.72468743,67921.0,67920.0,0.002946]
[1718086352197,0.74468743,67921.0,67920.0,0.002946]
[1718086352606,0.72468743,67921.0,67920.0,0.002946]
[1718086352837,0.72268743,67921.0,67920.0,0.001946]
[1718086353253,0.72468743,67921.0,67920.0,0.002946]
[1718086354217,0.93708743,67921.0,67920.0,0.002946]
[1718086355738,0.61079305,67921.0,67920.0,0.002946]
[1718086355943,0.93712971,67921.0,67920.0,0.002946]
[1718086356153,0.62956975,67921.0,67920.0,0.002946]
[1718086356376,0.05563433,67921.0,67920.0,0.155246]
[1718086356581,0.01168416,67921.0,67920.0,0.0260306]
[1718086356783,0.01168416,67921.0,67920.0,0.002946]
[1718086357231,0.15891316,67921.0,67920.0,0.002946]
[1718086358984,0.01168416,67921.0,67920.0,0.002946]
[1718086363914,0.01168416,67921.0,67920.0,0.022946]
[1718086364119,0.01168416,67921.0,67920.0,0.002946]
[1718086364562,0.01168416,67921.0,67920.0,0.0292006]
[1718086365432,0.01168416,67921.0,67920.0,0.0492006]
[1718086366465,0.01168416,67921.0,67920.0,0.0292006]
[1718086367421,0.05563663,67921.0,67920.0,0.0292006]
[1718086367623,0.05163663,67921.0,67920.0,0.0282006]
[1718086368044,0.05563663,67921.0,67920.0,0.0282006]
[1718086369360,0.05363663,67921.0,67920.0,0.0272006]
[1718086370193,0.05563663,67921.0,67920.0,0.0282006]
[1718086370475,0.05563663,67921.0,67920.0,0.0482006]
[1718086370630,0.01168416,67921.0,67920.0,0.0482006]
[1718086370863,0.01168416,67921.0,67920.0,0.2911006]
[1718086371102,0.006,67921.0,67920.0,0.464846]
[1718086371345,0.002,67921.0,67920.0,0.76186842]
[1718086371563,0.04395247,67936.0,67934.0,0.02]
[1718086371774,0.147194,67938.0,67936.0,0.1529]
[1718086372217,0.00532452,67937.0,67936.0,0.1529]
[1718086374142,0.00832452,67937.0,67936.0,0.1529]
[1718086374365,0.01032452,67937.0,67936.0,0.1783]
[1718086378253,0.01032452,67937.0,67936.0,0.17821358]
[1718086382469,0.01032452,67937.0,67936.0,0.0254]
[1718086382754,0.01032452,67937.0,67924.0,0.04936911]
[1718086382755,0.347221,67925.0,67924.0,0.04936911]
[1718086382973,0.77610089,67925.0,67924.0,0.04936911]
[1718086383209,0.147229,67921.0,67920.0,0.000946]
[1718086383445,0.29154893,67921.0,67920.0,0.000946]
[1718086383673,0.29691573,67921.0,67920.0,0.000946]
[1718086385221,0.34488342,67921.0,67920.0,0.000946]
[1718086385897,0.34588342,67921.0,67920.0,0.000946]
[1718086386529,0.30191573,67921.0,67920.0,0.000946]
[1718086387381,0.36789673,67921.0,67920.0,0.000946]
[1718086387859,0.71621461,67921.0,67920.0,0.000946]
[1718086388275,0.62820865,67921.0,67920.0,0.000946]
[1718086389305,0.7382161,67921.0,67920.0,0.000946]
[1718086389509,0.62820865,67921.0,67920.0,0.000946]
[1718086389995,0.7382161,67921.0,67920.0,0.000946]
[1718086391258,0.62820865,67921.0,67920.0,0.000946]
[1718086395887,0.62821145,67921.0,67920.0,0.000946]
[1718086396096,0.62721145,67921.0,67920.0,0.000946]
[1718086396697,0.62721145,67921.0,67920.0,0.003946]
[1718086397470,0.62321145,67921.0,67920.0,0.003946]
[1718086398059,0.73324386,67921.0,67920.0,0.000946]
[1718086398257,0.62321145,67921.0,67920.0,0.001946]
[1718086398462,0.62421145,67921.0,67920.0,0.001946]
[1718086398653,0.62421145,67921.0,67920.0,0.000946]
[1718086399063,0.33666252,67921.0,67920.0,0.000946]
[1718086399270,0.33665796,67921.0,67920.0,0.000946]
[1718086400120,0.33665685,67921.0,67920.0,0.000946]
[1718086401438,0.44672352,67921.0,67920.0,0.000946]
[1718086403490,0.0103668,67921.0,67920.0,0.000946]
[1718086403644,0.12045645,67921.0,67920.0,0.000946]
[1718086404235,0.4467465,67921.0,67920.0,0.000946]
[1718086404614,0.44675003,67921.0,67920.0,0.000946]
[1718086405078,0.53175003,67921.0,67920.0,0.000946]
[1718086406540,0.0953668,67921.0,67920.0,0.000946]
[1718086406804,0.20545991,67921.0,67920.0,0.000946]
[1718086407007,0.53174996,67921.0,67920.0,0.000946]
[1718086409993,0.0953668,67921.0,67920.0,0.000946]
[1718086410225,0.20546001,67921.0,67920.0,0.000946]
[1718086410435,0.53175019,67921.0,67920.0,0.000946]
[1718086411229,0.53175007,67921.0,67920.0,0.000946]
[1718086411658,0.44675007,67921.0,67920.0,0.000946]
[1718086412085,0.53175007,67921.0,67920.0,0.000946]
[1718086412341,0.53075007,67921.0,67920.0,0.0093606]
[1718086412544,0.53075007,67921.0,67920.0,0.0113606]
[1718086413170,0.53075007,67921.0,67920.0,0.0093606]
[1718086413171,0.53074981,67921.0,67920.0,0.0093606]
[1718086413816,0.53174981,67921.0,67920.0,0.0093606]
[1718086414228,0.53074981,67921.0,67920.0,0.0093606]
[1718086415080,0.53074981,67921.0,67920.0,0.000946]
[1718086415778,0.52674981,67921.0,67920.0,0.002946]
[1718086416285,0.52674981,67921.0,67920.0,0.000946]
[1718086416486,0.52674981,67921.0,67920.0,0.002946]
[1718086417128,0.52674981,67921.0,67920.0,0.000946]
[1718086417341,0.52674981,67921.0,67920.0,0.002946]
[1718086419197,0.52874981,67921.0,67920.0,0.002946]
[1718086419420,0.41865698,67921.0,67920.0,0.000946]
[1718086419628,0.56588598,67921.0,67920.0,0.000946]
[1718086419801,0.56388598,67921.0,67920.0,0.000946]
[1718086420804,0.56588598,67921.0,67920.0,0.000946]
[1718086422351,0.88920591,67921.0,67920.0,0.000946]
[1718086422563,1.38920591,67921.0,67920.0,0.000946]
[1718086422777,1.57309137,67921.0,67920.0,0.002946]
[1718086423201,1.46809137,67921.0,67920.0,0.002946]
[1718086423412,1.46809137,67921.0,67920.0,0.000946]
[1718086423413,1.55309137,67921.0,67920.0,0.000946]
[1718086423626,1.57109137,67921.0,67920.0,0.000946]
[1718086424051,1.57509137,67921.0,67920.0,0.000946]
[1718086424267,1.53406391,67921.0,67920.0,0.000946]
[1718086424692,1.57509048,67921.0,67920.0,0.000946]
[1718086425328,1.68268924,67921.0,67920.0,0.000946]
[1718086425540,1.74771511,67921.0,67920.0,0.000946]
[1718086425990,1.59908978,67921.0,67920.0,0.000946]
[1718086429498,1.55806391,67921.0,67920.0,0.000946]
[1718086429705,1.53506391,67921.0,67920.0,0.000946]
[1718086430438,1.53510392,67921.0,67920.0,0.000946]
[1718086430649,1.53505512,67921.0,67920.0,0.000946]
[1718086433040,1.82951412,67921.0,67920.0,0.000946]
[1718086433213,1.85251412,67921.0,67920.0,0.000946]
[1718086433676,1.89353695,67921.0,67920.0,0.000946]
[1718086433905,1.89353695,67921.0,67910.0,0.02396196]
[1718086433906,0.347251,67911.0,67910.0,0.02396196]
[1718086434118,0.90290112,67911.0,67910.0,0.02396196]
[1718086434320,0.90814791,67911.0,67910.0,0.02396196]
[1718086436108,0.90814791,67911.0,67910.0,0.02796196]
[1718086436437,0.90814791,67911.0,67910.0,0.02996196]
[1718086437652,0.93116901,67911.0,67910.0,0.02996196]
[1718086438260,1.06351651,67911.0,67910.0,0.02996196]
[1718086440235,1.08351651,67911.0,67910.0,0.02996196]
[1718086440455,1.08351651,67911.0,67910.0,0.03090796]
[1718086440655,1.06351651,67911.0,67910.0,0.03090796]
[1718086440859,0.84616901,67911.0,67910.0,0.03090796]
[1718086441088,0.93116901,67911.0,67910.0,0.03090796]
[1718086441447,0.93116901,67911.0,67910.0,0.02890796]
[1718086441654,0.93616901,67911.0,67910.0,0.02890796]
[1718086441874,0.93616901,67911.0,67910.0,0.02490796]
[1718086442298,0.95916901,67911.0,67910.0,0.02490796]
[1718086442764,0.95616901,67911.0,67910.0,0.02490796]
[1718086443195,0.95516901,67911.0,67910.0,0.02490796]
[1718086443400,0.94116901,67911.0,67910.0,0.02590796]
[1718086443617,0.96116901,67911.0,67910.0,0.02590796]
[1718086444046,0.94116901,67911.0,67910.0,0.02590796]
[1718086446185,1.09150895,67911.0,67910.0,0.02590796]
[1718086447552,1.11150895,67911.0,67910.0,0.02590796]
[1718086447960,1.09150895,67911.0,67910.0,0.02590796]
[1718086448489,1.11150895,67911.0,67910.0,0.02590796]
[1718086448727,1.09150895,67911.0,67910.0,0.02590796]
[1718086449153,0.97922238,67911.0,67910.0,0.02590796]
[1718086449358,1.09149819,67911.0,67910.0,0.02590796]
[1718086449556,1.11149819,67911.0,67910.0,0.02590796]
[1718086449755,1.11149866,67911.0,67910.0,0.02590796]
[1718086452457,1.00649866,67911.0,67910.0,0.02590796]
[1718086452703,1.09149866,67911.0,67910.0,0.02590796]
[1718086454309,1.15359688,67911.0,67910.0,0.02590796]
[1718086455315,1.18674817,67911.0,67910.0,0.02590796]
[1718086455540,1.31902943,67911.0,67910.0,0.02590796]
[1718086456419,0.92428193,67911.0,67910.0,0.10530796]
[1718086456643,0.77703093,67911.0,67910.0,0.13203876]
[1718086456869,0.77703093,67911.0,67910.0,0.29403876]
[1718086456870,0.55963035,67911.0,67910.0,0.29403876]
[1718086458480,0.54157698,67911.0,67910.0,0.29403876]